bitfinex/quotes_BTCUSD_20260221
["timestamp","ask_amount","ask_price","bid_price","bid_amount"]
[1771665498024,0.14258142,68197.0,68196.0,0.14556336]
[1771665500086,0.14258142,68197.0,68196.0,0.14578336]
[1771665500503,0.02307993,68206.0,68190.0,0.00016]
[1771665500504,0.07644152,68193.0,68190.0,0.00016]
[1771665500779,0.07332314,68192.0,68190.0,1e-08]
[1771665500941,0.07644152,68191.0,68190.0,1e-08]
[1771665501337,0.02296296,68200.0,68190.0,1e-08]
[1771665501338,0.07331666,68198.0,68190.0,1e-08]
[1771665501544,0.14975818,68198.0,68190.0,1e-08]
[1771665501765,0.07331886,68196.0,68190.0,1e-08]
[1771665501935,0.0733191,68197.0,68190.0,1e-08]
[1771665502137,0.14976029,68195.0,68190.0,1e-08]
[1771665503824,0.07332026,68194.0,68190.0,1e-08]
[1771665504149,0.07332244,68192.0,68190.0,1e-08]
[1771665504390,0.07644033,68191.0,68190.0,1e-08]
[1771665505174,0.14976127,68194.0,68190.0,1e-08]
[1771665505721,0.07644033,68194.0,68190.0,1e-08]
[1771665506290,0.07332146,68193.0,68190.0,1e-08]
[1771665506683,0.14976183,68193.0,68190.0,1e-08]
[1771665506881,0.07644037,68193.0,68190.0,1e-08]
[1771665507283,0.02296296,68200.0,68190.0,1e-08]
[1771665507284,0.29334773,68206.0,68193.0,0.07332079]
[1771665507485,0.29334773,68206.0,68193.0,0.09417752]
[1771665507486,0.03822018,68204.0,68193.0,0.09417752]
[1771665507812,0.07331546,68199.0,68190.0,0.07332423]
[1771665508210,0.07331546,68199.0,68190.0,0.07354423]
[1771665508630,0.07331633,68198.0,68190.0,0.07354423]
[1771665512057,0.03822013,68199.0,68190.0,0.09439753]
[1771665512374,0.07331895,68196.0,68190.0,0.00022001]
[1771665512535,0.03821923,68194.0,68190.0,0.00022001]
[1771665514293,0.07331895,68196.0,68190.0,0.00022001]
[1771665515461,0.03821983,68198.0,68190.0,0.00022001]
[1771665515657,0.03821983,68198.0,68191.0,0.07332253]
[1771665515998,0.11173588,68198.0,68190.0,0.07354364]
[1771665516816,0.07351605,68198.0,68190.0,0.07354364]
[1771665517057,0.07351605,68198.0,68190.0,0.16772116]
[1771665517282,0.07351605,68198.0,68190.0,0.09439753]
[1771665517283,0.0002,68198.0,68190.0,0.09439753]
[1771665517470,0.0002,68198.0,68191.0,0.09417752]
[1771665517891,0.0002,68198.0,68191.0,0.16750079]
[1771665518029,0.07351594,68198.0,68191.0,0.16750079]
[1771665519005,0.07351594,68198.0,68191.0,0.09417752]
[1771665519872,0.07351594,68198.0,68191.0,0.09440272]
[1771665520693,0.07351594,68198.0,68191.0,0.16772602]
[1771665520694,0.0002,68198.0,68191.0,0.16772602]
[1771665521287,0.07351606,68198.0,68191.0,0.16772602]
[1771665521518,0.07351606,68198.0,68191.0,0.0002252]
[1771665522337,0.0002,68198.0,68191.0,0.07354839]
[1771665523456,0.07351601,68198.0,68191.0,0.0002252]
[1771665529676,0.07331713,68197.0,68191.0,0.0002252]
[1771665530160,0.0733256,68189.0,68188.0,0.21859476]
[1771665530341,0.1655847,68198.0,68181.0,0.0001714]
[1771665530477,0.025,68187.0,68181.0,0.0001714]
[1771665530680,0.09832796,68187.0,68181.0,0.0001714]
[1771665531483,0.09832796,68187.0,68184.0,0.00022]
[1771665532029,0.025,68185.0,68184.0,0.00022]
[1771665532928,0.025,68185.0,68181.0,0.0001714]
[1771665532929,0.07333286,68183.0,68180.0,0.06204216]
[1771665533088,0.025,68182.0,68180.0,0.06204216]
[1771665533898,0.025,68182.0,68177.0,0.00022]
[1771665534108,8.572e-05,68183.0,68177.0,0.00022]
[1771665535342,0.025,68189.0,68177.0,0.00022]
[1771665535519,0.00016,68190.0,68180.0,0.08852246]
[1771665535717,0.07332871,68187.0,68180.0,0.08852246]
[1771665539317,0.07332614,68189.0,68180.0,0.1618569]
[1771665539318,0.07332635,68189.0,68180.0,0.1618569]
[1771665539455,0.07332635,68189.0,68180.0,0.1620769]
[1771665539859,0.07332764,68188.0,68180.0,0.1620769]
[1771665540419,0.0733291,68186.0,68180.0,0.08874246]
[1771665540629,0.09833421,68181.0,68180.0,1e-08]
[1771665541656,0.025,68184.0,68180.0,1e-08]
[1771665542055,0.07333083,68186.0,68180.0,1e-08]
[1771665542309,0.09832812,68187.0,68180.0,1e-08]
[1771665542511,0.0983306,68185.0,68180.0,1e-08]
[1771665544323,0.07333099,68184.0,68180.0,1e-08]
[1771665545076,0.025,68183.0,68180.0,1e-08]
[1771665546253,0.07333099,68184.0,68180.0,1e-08]
[1771665546254,0.025,68181.0,68180.0,1e-08]
[1771665546417,0.09833421,68181.0,68180.0,1e-08]
[1771665546619,0.025,68181.0,68180.0,1e-08]
[1771665547459,0.09833241,68183.0,68180.0,1e-08]
[1771665547757,0.07333335,68182.0,68180.0,1e-08]
[1771665547911,0.09833335,68182.0,68180.0,1e-08]
[1771665548113,0.07333421,68181.0,68180.0,1e-08]
[1771665548327,0.09833421,68181.0,68180.0,1e-08]
[1771665548802,0.09817398,68181.0,68180.0,1e-08]
[1771665549328,0.025,68181.0,68180.0,1e-08]
[1771665550898,0.09833421,68181.0,68180.0,1e-08]
[1771665555168,0.09817398,68181.0,68180.0,1e-08]
[1771665558710,0.02483977,68181.0,68180.0,1e-08]
[1771665558914,0.0983324,68183.0,68180.0,1e-08]
[1771665559126,0.07333206,68183.0,68180.0,1e-08]
[1771665559727,0.07353197,68185.0,68180.0,1e-08]
[1771665559933,0.07333207,68183.0,68180.0,1e-08]
[1771665560339,0.07333175,68184.0,68180.0,1e-08]
[1771665560504,0.07353193,68185.0,68180.0,1e-08]
[1771665560710,0.09853193,68185.0,68180.0,1e-08]
[1771665561358,0.07333287,68183.0,68180.0,1e-08]
[1771665562012,0.09833287,68183.0,68180.0,1e-08]
[1771665562420,0.07333386,68182.0,68180.0,1e-08]
[1771665562626,0.09833287,68183.0,68180.0,1e-08]
[1771665562825,0.025,68183.0,68180.0,1e-08]
[1771665563665,0.09833229,68183.0,68180.0,1e-08]
[1771665566108,0.07333229,68183.0,68180.0,1e-08]
[1771665566311,0.07333114,68184.0,68180.0,1e-08]
[1771665567238,0.07333208,68183.0,68180.0,1e-08]
[1771665567919,0.00016,68190.0,68180.0,0.07333509]
[1771665568121,0.1655447,68190.0,68180.0,1e-08]
[1771665568338,0.07332968,68186.0,68180.0,1e-08]
[1771665568535,0.07332993,68185.0,68180.0,1e-08]
[1771665569070,0.07333111,68184.0,68180.0,1e-08]
[1771665570227,0.29330809,68188.0,68180.0,1e-08]
[1771665570537,0.07333205,68184.0,68180.0,1e-08]
[1771665570741,0.025,68184.0,68180.0,1e-08]
[1771665572505,0.07333241,68183.0,68180.0,1e-08]
[1771665575051,0.07333206,68183.0,68180.0,1e-08]
[1771665580657,0.09833206,68183.0,68180.0,0.00025441]
[1771665585404,0.025,68183.0,68180.0,0.00025441]
[1771665585606,0.09833209,68183.0,68180.0,0.00025441]
[1771665589094,0.07333209,68183.0,68180.0,0.00025441]
[1771665589579,0.0002,68185.0,68180.0,0.00025441]
[1771665590196,0.07332807,68187.0,68180.0,0.00025441]
[1771665591980,0.07352807,68187.0,68180.0,0.00025441]
[1771665592356,0.07332609,68189.0,68180.0,0.07363672]
[1771665592763,0.07332771,68188.0,68180.0,0.07363672]
[1771665593463,0.07332803,68187.0,68180.0,0.07363672]
[1771665595787,0.07332609,68189.0,68181.0,0.07333332]
[1771665596351,0.07332701,68188.0,68180.0,0.14697185]
[1771665598082,0.07332806,68187.0,68180.0,0.07363672]
[1771665598970,0.07352806,68187.0,68180.0,0.07363672]
[1771665599171,0.07352806,68187.0,68180.0,0.00025441]
[1771665599394,0.0002,68187.0,68180.0,0.00025441]
[1771665599598,0.025,68184.0,68180.0,0.00025441]
[1771665600121,0.0733318,68184.0,68180.0,0.00025441]
[1771665600335,0.07333208,68183.0,68180.0,1e-08]
[1771665600536,0.07333421,68181.0,68180.0,1e-08]
[1771665600962,0.07333349,68182.0,68180.0,1e-08]
[1771665603619,0.07333421,68181.0,68180.0,1e-08]
[1771665604465,0.0733334,68182.0,68180.0,1e-08]
[1771665604713,0.07333212,68183.0,68180.0,1e-08]
[1771665605934,0.07255311,68192.0,68180.0,1e-08]
[1771665605935,0.00036,68190.0,68183.0,0.025]
[1771665606149,0.07332709,68188.0,68183.0,0.025]
[1771665606550,0.0733265,68189.0,68183.0,0.025]
[1771665608319,0.0733265,68189.0,68181.0,0.07333332]
[1771665608463,0.0733265,68189.0,68180.0,0.00022]
[1771665608464,0.0002,68196.0,68180.0,0.00038]
[1771665608668,0.07347407,68200.0,68184.0,0.07333098]
[1771665608883,0.07347407,68200.0,68193.0,0.025]
[1771665609576,0.07331492,68199.0,68193.0,0.025]
[1771665610193,0.07351593,68198.0,68193.0,0.025]
[1771665610398,0.07331731,68197.0,68193.0,0.025]
[1771665610840,0.00016,68200.0,68193.0,0.025]
[1771665611790,0.07331502,68199.0,68193.0,0.025]
[1771665612229,0.00016,68200.0,68194.0,0.07332]
[1771665612448,0.0002,68198.0,68191.0,0.07332345]
[1771665612788,0.0002,68198.0,68192.0,0.07332166]
[1771665612986,0.0002,68198.0,68191.0,0.07332345]
[1771665613806,0.0002,68198.0,68190.0,0.14473908]
[1771665613970,0.07351595,68198.0,68190.0,0.07332424]
[1771665614171,0.0002,68198.0,68191.0,0.0733234]
[1771665614870,0.0002,68198.0,68192.0,0.07332131]
[1771665615491,0.0002,68198.0,68191.0,0.0733234]
[1771665616590,0.00016,68200.0,68191.0,0.0733234]
[1771665616934,0.07331178,68202.0,68193.0,0.07332042]
[1771665617315,0.07347165,68203.0,68191.0,0.14473829]
[1771665617316,0.07331377,68201.0,68192.0,0.07332213]
[1771665617575,0.07331377,68202.0,68192.0,0.07332238]
[1771665617776,0.07331355,68201.0,68192.0,0.07332238]
[1771665618209,0.07331355,68201.0,68193.0,0.07332073]
[1771665618614,0.07331253,68202.0,68193.0,0.07332073]
[1771665618856,0.07331274,68201.0,68193.0,0.07332073]
[1771665619515,0.00036049,68203.0,68193.0,0.07332073]
[1771665619790,0.00036049,68203.0,68191.0,0.07141484]
[1771665619791,0.07331092,68203.0,68194.0,0.07331927]
[1771665620750,0.07331181,68202.0,68194.0,0.07331927]
[1771665622027,0.07331082,68203.0,68195.0,0.07331901]
[1771665622189,0.1762,68208.0,68190.0,0.02313642]
[1771665622377,0.1762,68208.0,68200.0,0.07331309]
[1771665622582,0.07346507,68210.0,68200.0,0.07331309]
[1771665622931,0.07330523,68208.0,68200.0,0.07331309]
[1771665623129,0.07330591,68208.0,68198.0,0.07331567]
[1771665623281,0.07330591,68208.0,68190.0,0.31643043]
[1771665623282,0.025,68202.0,68190.0,0.00016]
[1771665623486,0.09629108,68200.0,68191.0,0.07332252]
[1771665623888,0.09629108,68200.0,68192.0,0.07332148]
[1771665624211,0.07331487,68199.0,68191.0,0.07332252]
[1771665624779,0.09831466,68200.0,68191.0,0.07332252]
[1771665624991,0.09831466,68200.0,68192.0,0.07332234]
[1771665625392,0.0733151,68199.0,68191.0,0.07332327]
[1771665625565,0.09831611,68198.0,68190.0,0.07348428]
[1771665625766,0.025,68197.0,68190.0,0.00016]
[1771665626006,0.07331885,68196.0,68190.0,0.00016]
[1771665626418,0.025,68195.0,68187.0,0.07332737]
[1771665626611,0.025,68195.0,68188.0,0.07332644]
[1771665627375,0.025,68195.0,68188.0,0.07314644]
[1771665630133,0.025,68195.0,68189.0,0.07332541]
[1771665632164,0.0252,68195.0,68189.0,0.07332541]
[1771665633154,0.0252,68195.0,68190.0,0.07332453]
[1771665633301,0.0252,68195.0,68189.0,0.07332535]
[1771665633504,0.07331624,68198.0,68188.0,0.07314644]
[1771665633741,0.07331624,68198.0,68189.0,0.0733256]
[1771665633927,0.0733173,68197.0,68189.0,0.0733256]
[1771665634126,0.0983173,68197.0,68189.0,0.0733256]
[1771665638564,0.0983173,68197.0,68189.0,0.0735456]
[1771665640780,0.0705512,68196.0,68189.0,0.00022]
[1771665640955,0.16886966,68196.0,68189.0,0.00022]
[1771665641345,0.09831846,68196.0,68189.0,0.00022]
[1771665641561,0.025,68196.0,68189.0,0.00022]
[1771665643515,0.09831816,68196.0,68189.0,0.00022]
[1771665648119,0.07331816,68196.0,68189.0,0.00022]
[1771665652860,0.09831816,68196.0,68189.0,0.00022]
[1771665653086,0.07331816,68196.0,68189.0,0.00022]
[1771665653311,0.025,68195.0,68189.0,0.00022]
[1771665655006,0.025,68195.0,68190.0,0.07332375]
[1771665655203,0.0002,68197.0,68190.0,0.07332375]
[1771665655449,0.21958686,68219.0,68189.0,0.00022]
[1771665655585,0.6148781,68235.0,68189.0,0.00022]
[1771665655586,0.17611334,68239.0,68221.0,0.06855971]
[1771665655788,0.16552328,68250.0,68235.0,0.11675613]
[1771665655789,0.03245641,68240.0,68235.0,0.11675613]
[1771665655990,0.01375275,68239.0,68232.0,0.07358722]
[1771665656224,0.00038992,68240.0,68233.0,0.14594517]
[1771665656442,0.00038992,68240.0,68234.0,0.14594517]
[1771665656638,0.00038992,68240.0,68235.0,0.14594517]
[1771665656639,0.025,68239.0,68235.0,0.14594517]
[1771665656810,0.025,68238.0,68230.0,0.07344149]
[1771665657050,0.01219524,68239.0,68233.0,0.07327815]
[1771665657209,0.01219524,68239.0,68230.0,0.07344064]
[1771665657471,0.00038992,68240.0,68231.0,0.07328024]
[1771665657472,0.02538992,68240.0,68231.0,0.07328024]
[1771665657672,0.02538992,68240.0,68230.0,0.07344135]
[1771665657970,0.02538992,68240.0,68230.0,0.00016]
[1771665658112,0.02538992,68240.0,68221.0,0.03751114]
[1771665658113,0.07327188,68239.0,68221.0,0.03751114]
[1771665658322,0.025,68231.0,68220.0,0.00016]
[1771665658710,0.025,68231.0,68225.0,0.07328584]
[1771665658917,0.1659132,68240.0,68225.0,0.07328584]
[1771665658918,0.025,68239.0,68225.0,0.07328584]
[1771665659323,0.025,68239.0,68220.0,0.06871971]
[1771665659324,0.025,68239.0,68233.0,0.07327818]
[1771665659559,0.025,68239.0,68233.0,0.07327768]
[1771665660379,0.025,68239.0,68231.0,0.0732796]
[1771665660614,0.025,68239.0,68230.0,0.07328072]
[1771665660615,0.025,68239.0,68232.0,0.07327924]
[1771665661038,0.025,68239.0,68233.0,0.07327807]
[1771665661424,0.025,68239.0,68231.0,0.07327965]
[1771665661854,0.025,68239.0,68232.0,0.0732791]
[1771665662041,0.00054992,68240.0,68233.0,0.07327809]
[1771665662818,0.00054992,68240.0,68231.0,0.07328038]
[1771665663058,0.00054992,68240.0,68228.0,0.06855971]
[1771665663210,0.00054992,68240.0,68236.0,0.07327476]
[1771665663856,0.0002656,68243.0,68236.0,0.07327476]
[1771665664055,0.0002656,68243.0,68234.0,0.07327688]
[1771665664278,0.0002656,68243.0,68235.0,0.07327579]
[1771665664494,0.0705512,68249.0,68235.0,0.07327579]
[1771665664495,0.0150069,68288.0,68271.0,0.06855971]
[1771665664658,0.0150069,68288.0,68270.0,0.00016]
[1771665664659,0.01258724,68286.0,68275.0,0.29293183]
[1771665664875,0.0705512,68283.0,68270.0,0.00016]
[1771665665077,0.0705512,68283.0,68260.0,0.01081524]
[1771665665078,0.02254019,68269.0,68260.0,0.00016]
[1771665665282,0.02254019,68267.0,68248.0,0.01065524]
[1771665665505,0.02254019,68264.0,68250.0,0.17628]
[1771665665701,0.16536328,68260.0,68255.0,0.07325403]
[1771665666031,0.03512743,68264.0,68256.0,0.07325363]
[1771665666233,0.02254019,68264.0,68256.0,0.07325363]
[1771665666549,0.0226571,68264.0,68257.0,0.07325248]
[1771665666740,0.03524434,68264.0,68256.0,0.0732536]
[1771665667152,0.00016,68270.0,68257.0,0.07325235]
[1771665667365,0.09093725,68328.0,68257.0,0.07325235]
[1771665667366,0.07355271,68317.0,68291.0,0.06855971]
[1771665667550,0.00907592,68301.0,68292.0,0.40668]
[1771665667754,0.07735082,68309.0,68292.0,0.40668]
[1771665667956,0.07735082,68309.0,68299.0,0.07320725]
[1771665668188,0.00316001,68309.0,68300.0,0.07320615]
[1771665668466,0.00316001,68309.0,68301.0,0.40708]
[1771665668613,0.00016,68320.0,68315.0,0.07319036]
[1771665668815,0.07319465,68311.0,68310.0,0.00016]
[1771665669095,0.07319167,68314.0,68305.0,0.16504]
[1771665669237,0.07682041,68316.0,68301.0,0.07320531]
[1771665669446,0.07682041,68316.0,68302.0,0.38168]
[1771665669447,0.16536328,68311.0,68302.0,0.38168]
[1771665669794,0.07670351,68311.0,68302.0,0.23124]
[1771665669919,0.14989828,68311.0,68302.0,0.23124]
[1771665670126,0.14989828,68311.0,68300.0,0.00016]
[1771665670127,0.07670351,68311.0,68300.0,0.00016]
[1771665670343,0.07319609,68310.0,68300.0,0.00016]
[1771665670541,0.14989726,68312.0,68300.0,0.00016]
[1771665670756,0.07319592,68310.0,68300.0,0.00016]
[1771665671305,0.07670351,68309.0,68300.0,0.00016]
[1771665671501,0.07319465,68311.0,68301.0,0.0732052]
[1771665672080,0.07319465,68311.0,68300.0,0.00016]
[1771665672280,0.07670351,68310.0,68300.0,0.00016]
[1771665672485,0.07670351,68308.0,68300.0,0.00016]
[1771665672835,0.07670351,68304.0,68300.0,0.00016]
[1771665673039,0.05036224,68309.0,68300.0,0.00016]
[1771665673040,0.07319859,68308.0,68300.0,0.00016]
[1771665673194,0.07670351,68307.0,68300.0,0.00016]
[1771665673373,0.07320022,68306.0,68300.0,0.00016]
[1771665673775,0.07670351,68307.0,68300.0,0.00016]
[1771665673981,0.14990266,68307.0,68300.0,0.00016]
[1771665674189,0.07319824,68308.0,68300.0,0.00016]
[1771665674390,0.07319786,68308.0,68300.0,0.00016]
[1771665674784,0.0630189,68308.0,68300.0,0.00016]
[1771665674988,0.07319704,68309.0,68300.0,0.00016]
[1771665674989,0.0002,68311.0,68300.0,0.00016]
[1771665675194,0.07319581,68310.0,68300.0,0.00016]
[1771665675421,0.07319581,68310.0,68300.0,0.07336437]
[1771665675604,0.07319705,68309.0,68300.0,0.07336437]
[1771665676319,0.15259884,68310.0,68300.0,0.00016]
[1771665676718,0.07319679,68309.0,68300.0,0.00016]
[1771665677738,0.0002,68311.0,68300.0,0.00016]
[1771665677937,0.06335638,68312.0,68300.0,0.00016]
[1771665678141,0.07319036,68315.0,68300.0,0.00016]
[1771665678460,0.07319143,68314.0,68305.0,0.07320072]
[1771665678713,0.07319051,68315.0,68305.0,0.07320072]
[1771665678882,0.07319855,68308.0,68300.0,0.00016]
[1771665679691,0.07319909,68307.0,68300.0,0.00016]
[1771665680068,0.08141032,68314.0,68300.0,0.00016]
[1771665680271,0.07319361,68312.0,68303.0,0.07320293]
[1771665680670,0.08141032,68314.0,68300.0,0.00016]
[1771665681044,0.073197,68309.0,68300.0,0.00016]
[1771665681759,0.073197,68309.0,68300.0,0.07336607]
[1771665682357,0.073197,68309.0,68301.0,0.14262446]
[1771665682587,0.20941546,68312.0,68302.0,0.14262446]
[1771665682858,0.07319548,68311.0,68303.0,0.14262446]
[1771665683060,0.07319536,68311.0,68304.0,0.14262446]
[1771665683204,0.07319536,68311.0,68300.0,0.07336591]
[1771665683205,0.07319682,68309.0,68300.0,0.00016]
[1771665683926,0.07319682,68309.0,68300.0,0.07336562]
[1771665684328,0.07435838,68315.0,68300.0,0.00016]
[1771665684329,0.0731931,68313.0,68300.0,0.00016]
[1771665684534,0.05565288,68314.0,68300.0,0.07336563]
[1771665684709,0.07319665,68310.0,68301.0,0.07320512]
[1771665685268,0.07319442,68312.0,68301.0,0.07320512]
[1771665685488,0.07319652,68310.0,68300.0,0.07336563]
[1771665685776,0.07319652,68310.0,68300.0,0.00016]
[1771665686137,0.07319679,68309.0,68300.0,0.00016]
[1771665686322,0.07435838,68308.0,68300.0,0.00016]
[1771665686530,0.04910245,68307.0,68300.0,0.00016]
[1771665686727,0.04178256,68307.0,68300.0,0.00016]
[1771665686952,0.04178256,68307.0,68300.0,0.07336624]
[1771665687368,0.07435838,68308.0,68300.0,0.00016]
[1771665687544,0.07319684,68309.0,68300.0,0.00016]
[1771665687748,0.07319684,68309.0,68300.0,0.07336608]
[1771665688169,0.07319787,68308.0,68300.0,0.00016]
[1771665688366,0.02883227,68305.0,68297.0,0.24505861]
[1771665688792,0.07435838,68305.0,68292.0,0.17219799]
[1771665689016,0.07320689,68300.0,68284.0,0.07322359]
[1771665689210,0.07330679,68316.0,68285.0,0.43933505]
[1771665689406,0.02883227,68312.0,68288.0,0.15027438]
[1771665689607,0.02883227,68312.0,68283.0,0.17586]
[1771665689608,0.07435838,68318.0,68301.0,0.02116772]
[1771665689784,0.02348442,68334.0,68322.0,0.07318244]
[1771665689979,0.08045158,68340.0,68308.0,0.07319702]
[1771665689980,0.07435838,68325.0,68308.0,0.07319702]
[1771665690159,0.07435838,68320.0,68308.0,0.07319707]
[1771665690358,0.18543226,68332.0,68304.0,0.02366908]
[1771665690584,0.02348442,68318.0,68304.0,0.02366908]
[1771665690801,0.07319371,68312.0,68302.0,0.07320323]
[1771665690968,0.07319371,68312.0,68302.0,0.0001169]
[1771665691174,0.07319371,68312.0,68302.0,0.07332103]
[1771665691448,0.07319473,68311.0,68302.0,0.07332103]
[1771665691575,0.07319675,68310.0,68302.0,0.0001169]
[1771665691769,0.0731958,68310.0,68302.0,0.07332114]
[1771665691977,0.0731958,68310.0,68302.0,0.0001169]
[1771665692196,0.07319679,68309.0,68302.0,0.0001169]
[1771665692425,0.09819658,68310.0,68302.0,0.0001169]
[1771665692624,0.07319714,68309.0,68302.0,0.0001169]
[1771665692927,0.09819602,68310.0,68302.0,0.0001169]
[1771665693223,0.07319415,68312.0,68302.0,0.0001169]
[1771665693426,0.07319669,68310.0,68302.0,0.0001169]
[1771665693775,0.07319494,68311.0,68302.0,0.07332078]
[1771665693977,0.07319415,68312.0,68302.0,0.0001169]
[1771665694235,0.0002,68310.0,68307.0,0.21529633]
[1771665694408,0.0002,68310.0,68302.0,0.07332082]
[1771665694409,0.04769894,68311.0,68305.0,0.21529633]
[1771665694608,0.04751894,68311.0,68305.0,0.21529633]
[1771665695213,0.04751894,68311.0,68306.0,0.14471706]
[1771665695414,0.04751894,68311.0,68307.0,0.14471706]
[1771665695620,0.04751894,68311.0,68308.0,0.14471706]
[1771665695969,0.04751894,68311.0,68309.0,0.14471706]
[1771665696110,0.04751894,68311.0,68310.0,0.14471706]
[1771665696995,0.04751894,68311.0,68310.0,0.29293105]
[1771665697199,0.07319572,68310.0,68302.0,0.0001169]
[1771665697548,0.07319709,68309.0,68302.0,0.0001169]
[1771665697930,0.07319709,68309.0,68300.0,0.07342596]
[1771665697931,0.0732031,68304.0,68300.0,0.00022]
[1771665698134,0.02273729,68304.0,68300.0,0.00022]
[1771665698448,0.02262056,68325.0,68300.0,0.00038]
[1771665698649,0.09686287,68323.0,68300.0,0.07358619]
[1771665698850,0.0731966,68310.0,68301.0,0.07320531]
[1771665699008,0.01371839,68309.0,68301.0,0.07320531]
[1771665699213,0.08691541,68309.0,68300.0,0.07358619]
[1771665699410,0.01371839,68308.0,68300.0,0.07358619]
[1771665699618,0.07319702,68309.0,68300.0,0.07358619]
[1771665699846,0.0137182,68308.0,68300.0,0.07358619]
[1771665700044,0.07319702,68309.0,68300.0,0.07358619]
[1771665700216,0.02262056,68313.0,68301.0,0.07320533]
[1771665700581,0.07319465,68311.0,68301.0,0.07320533]
[1771665700929,0.0731959,68310.0,68301.0,0.07320533]
[1771665702022,0.09581511,68312.0,68303.0,0.07320232]
[1771665702222,0.09581511,68312.0,68300.0,0.07358454]
[1771665702537,0.09581511,68312.0,68303.0,0.073203]
[1771665702930,0.09581511,68312.0,68302.0,0.07320406]
[1771665703141,0.07319487,68311.0,68302.0,0.07320406]
[1771665703347,0.07319487,68311.0,68303.0,0.0732032]
[1771665703547,0.09581419,68312.0,68303.0,0.0732032]
[1771665703781,0.07319481,68311.0,68301.0,0.07320537]
[1771665703993,0.07319752,68309.0,68301.0,0.07320531]
[1771665704189,0.07319593,68310.0,68301.0,0.07320531]
[1771665704725,0.07319593,68310.0,68302.0,0.07320414]
[1771665704863,0.02262056,68312.0,68302.0,0.07320414]
[1771665705214,0.09581418,68312.0,68303.0,0.07320322]
[1771665705399,0.07319485,68311.0,68303.0,0.07320322]
[1771665705558,0.09581418,68312.0,68303.0,0.07320322]
[1771665705765,0.07319486,68311.0,68303.0,0.07320322]
[1771665706184,0.07319486,68311.0,68302.0,0.07320414]
[1771665706185,0.02262056,68312.0,68300.0,0.00038]
[1771665706539,0.07319209,68314.0,68301.0,0.29282148]
[1771665706919,0.07319253,68313.0,68304.0,0.07320133]
[1771665707267,0.07319253,68313.0,68305.0,0.07320059]
[1771665707618,0.07319277,68313.0,68305.0,0.07320059]
[1771665708208,0.07319741,68309.0,68301.0,0.07320504]
[1771665708411,0.02262056,68308.0,68301.0,0.07320504]
[1771665708609,0.02262056,68308.0,68302.0,0.07320329]
[1771665708974,0.02262056,68308.0,68302.0,0.07342329]
[1771665709109,0.07319487,68311.0,68303.0,0.14510127]
[1771665709317,0.07319385,68312.0,68304.0,0.14510127]
[1771665709634,0.07319385,68312.0,68303.0,0.07320304]
[1771665709635,0.0731936,68312.0,68305.0,0.14510127]
[1771665709829,0.0731936,68312.0,68306.0,0.14510127]
[1771665710032,0.02262056,68311.0,68307.0,0.14510127]
[1771665710212,0.18896944,68357.0,68300.0,0.00038]
[1771665710213,0.02262056,68303.0,68300.0,0.00038]
[1771665710427,0.02262056,68303.0,68294.0,0.29284737]
[1771665710627,0.07319572,68310.0,68299.0,0.07320731]
[1771665710852,0.02262056,68312.0,68299.0,0.09037091]
[1771665711033,0.07319465,68311.0,68301.0,0.07320531]
[1771665711219,0.07319634,68310.0,68302.0,0.07320398]
[1771665711420,0.07319465,68311.0,68302.0,0.07359383]
[1771665711851,0.07319585,68310.0,68302.0,0.07359383]
[1771665712098,0.07319802,68308.0,68302.0,0.00038985]
[1771665712449,0.14630401,68307.0,68302.0,0.00038985]
[1771665712659,0.14630401,68306.0,68302.0,0.00038985]
[1771665712854,0.09582021,68307.0,68299.0,0.06725289]
[1771665713151,0.14614401,68306.0,68299.0,0.05673706]
[1771665713337,0.14614401,68306.0,68299.0,0.05531696]
[1771665713538,0.07319817,68308.0,68297.0,0.07320921]
[1771665713775,0.0731992,68307.0,68299.0,0.07320676]
[1771665714758,0.07320029,68306.0,68297.0,0.07320752]
[1771665714957,0.07320012,68306.0,68297.0,0.07320752]
[1771665715260,0.0731992,68307.0,68298.0,0.07320773]
[1771665715580,0.0731992,68307.0,68299.0,0.0732072]
[1771665715783,0.02262056,68306.0,68292.0,0.17588]
[1771665715961,0.02262056,68304.0,68292.0,0.17588]
[1771665716167,0.073202,68305.0,68296.0,0.07320984]
[1771665716928,0.073202,68305.0,68296.0,0.07321072]
[1771665717474,0.07320222,68304.0,68296.0,0.07321072]
[1771665717673,0.09582198,68305.0,68297.0,0.07320962]
[1771665718018,0.09582198,68305.0,68298.0,0.00022]
[1771665718215,0.09582198,68305.0,68291.0,0.10976564]
[1771665718216,0.04834088,68294.0,68286.0,0.00022]
[1771665718419,0.07321394,68293.0,68291.0,0.00022]
[1771665718566,0.07321407,68293.0,68286.0,0.00022]
[1771665718768,0.07321614,68291.0,68286.0,0.00022]
[1771665718969,0.07321022,68297.0,68287.0,0.07322037]
[1771665719217,0.07321194,68295.0,68286.0,0.07344123]
[1771665719436,0.07321301,68294.0,68286.0,0.00022]
[1771665719985,0.09583357,68294.0,68286.0,0.00022]
[1771665720497,0.09583357,68294.0,68286.0,0.07344142]
[1771665720837,0.09583357,68294.0,68286.0,0.00022]
[1771665721040,0.07321401,68293.0,68286.0,0.00022]
[1771665721186,0.09583367,68294.0,68286.0,0.00022]
[1771665721384,0.07321586,68292.0,68286.0,0.00022]
[1771665721586,0.07321717,68290.0,68286.0,0.00022]
[1771665721837,0.02262056,68289.0,68286.0,0.00022]
[1771665722471,0.02262056,68305.0,68293.0,0.07321311]
[1771665722617,0.37436205,68310.0,68286.0,0.29310151]
[1771665722618,0.07321093,68296.0,68286.0,0.07344139]
[1771665722839,0.02262056,68297.0,68286.0,0.00022]
[1771665723030,0.07320934,68298.0,68289.0,0.07321728]
[1771665723222,0.02290498,68300.0,68287.0,0.07321962]
[1771665723580,0.0732093,68298.0,68286.0,0.0928214]
[1771665723752,0.0732093,68298.0,68287.0,0.10976564]
[1771665723925,0.00038954,68308.0,68289.0,0.01716424]
[1771665724106,0.07320125,68305.0,68297.0,0.07320947]
[1771665724451,0.07320125,68305.0,68288.0,0.29287293]
[1771665724452,0.00038954,68308.0,68300.0,0.07320557]
[1771665724811,0.0732002,68306.0,68297.0,0.07320935]
[1771665725014,0.0732002,68306.0,68292.0,0.0926014]
[1771665725015,0.07320612,68301.0,68292.0,0.0732148]
[1771665725213,0.00038954,68308.0,68288.0,0.0926014]
[1771665725438,0.2927868,68310.0,68301.0,0.07320522]
[1771665725439,0.07319572,68310.0,68301.0,0.07320522]
[1771665725615,0.00016,68320.0,68303.0,0.01716424]
[1771665725936,0.07319262,68313.0,68302.0,0.07320337]
[1771665726144,0.07319358,68312.0,68302.0,0.07320337]
[1771665726313,0.07319358,68312.0,68303.0,0.07320299]